lending/lending_fUSD_20251111
["ID","MTS","AMOUNT","RATE_DAILY","PERIOD"]
[393628251,1762865440321,-500.0,0.00038238,7]
[393628252,1762865440331,-1875.03884345,0.00038339,2]
[393628253,1762865440340,-500.0,0.00038356,2]
[393628254,1762865440350,-300.0,0.00038356,2]
[393628255,1762865440359,-300.0,0.00038356,2]
[393628256,1762865440368,-300.0,0.00038356,2]
[393628257,1762865440378,-300.0,0.00038356,2]
[393628258,1762865440387,-300.0,0.00038356,2]
[393628259,1762865440397,-300.0,0.00038356,2]
[393628260,1762865440407,-300.0,0.00038356,2]
[393628261,1762865440417,-300.0,0.00038356,2]
[393628262,1762865440427,-333.74453563,0.00038356,2]
[393628263,1762865440436,-1993.81958466,0.00038506,2]
[393628264,1762865440447,-2112.60032588,0.00038673,2]
[393628265,1762865440456,-272.66,0.00038685,26]
[393628266,1762865440465,-1795.0,0.00038732,7]
[393628267,1762865440475,-1795.0,0.00038739,2]
[393628268,1762865440486,-11223.0951968,0.00038775,4]
[393628270,1762865440673,-12798.7321392,0.00038794,4]
[393628271,1762865440683,-168.54112068,0.000388,120]
[393628272,1762865440693,-788.0,0.00038804,120]
[393628273,1762865440706,-788.0,0.00038808,2]
[393628274,1762865440717,-2231.38106709,0.00038839,2]
[393628275,1762865440727,-178.163465,0.000389,60]
[393628276,1762865440736,-176.747414,0.000389,60]
[393628277,1762865440746,-422.34158653,0.00038941,11]
[393628278,1762865440756,-422.34158646,0.00038941,11]
[393628279,1762865440767,-422.34158646,0.00038941,11]
[393628280,1762865440778,-422.34158646,0.00038941,11]
[393628281,1762865440788,-422.34158646,0.00038941,11]
[393628282,1762865440798,-422.34158646,0.00038941,11]
[393628283,1762865440808,-422.34158646,0.00038941,11]
[393628284,1762865440818,-422.34158646,0.00038941,11]
[393628285,1762865440827,-422.34158646,0.00038941,11]
[393628286,1762865440837,-422.34158646,0.00038941,11]
[393628287,1762865440846,-422.34158646,0.00038941,11]
[393628288,1762865440856,-422.34158646,0.00038941,11]
[393628289,1762865440866,-422.34158646,0.00038941,11]
[393628290,1762865440875,-422.34158646,0.00038941,11]
[393628291,1762865440885,-846.06,0.00038976,5]
[393628292,1762865440895,-2350.1618083,0.00039006,2]
[393628293,1762865440905,-11223.0951968,0.00039034,4]
[393628294,1762865440915,-12798.7321392,0.00039034,4]
[393628295,1762865440924,-1397.9,0.00039044,2]
[393628296,1762865440933,-477.64,0.00039044,2]
[393628297,1762865440943,-477.64,0.00039044,2]
[393628298,1762865440957,-477.64,0.00039044,2]
[393628299,1762865440966,-477.64,0.00039044,2]
[393628300,1762865440976,-477.64,0.00039044,2]
[393628301,1762865440986,-477.64,0.00039044,2]
[393628302,1762865440996,-477.64,0.00039044,2]
[393628303,1762865441006,-477.64,0.00039044,2]
[393628304,1762865441016,-477.64,0.00039044,2]
[393628305,1762865441026,-474.73,0.00039044,2]
[393628306,1762865441036,-5000.0,0.00039054,30]
[393628307,1762865441046,-169.21,0.00039068,2]
[393628308,1762865441056,-169.21,0.00039068,2]
[393628309,1762865441065,-169.21,0.00039068,2]
[393628310,1762865441075,-169.21,0.00039068,2]
[393628311,1762865441085,-169.21,0.00039068,2]
[393628312,1762865441101,-169.21,0.00039068,2]
[393628313,1762865441110,-169.21,0.00039068,2]
[393628314,1762865441120,-505.87243499,0.00039105,120]
[393628315,1762865441130,-788.0,0.00039144,7]
[393628316,1762865441140,-178.163465,0.0003915,60]
[393628317,1762865441149,-176.747414,0.0003915,60]
[393628318,1762865441159,-166.592435,0.0003915,60]
[393628319,1762865441168,-873.12,0.00039154,5]
[393628320,1762865441178,-2468.94254952,0.00039172,2]
[393628321,1762865441188,-450.0,0.00039202,7]
[393628322,1762865441197,-171.62032392,0.00039296,13]
[393628323,1762865441207,-11223.0951968,0.00039311,4]
[393628324,1762865441218,-1794.0,0.00039321,2]
[393628325,1762865441227,-2587.72329073,0.00039339,2]
[393628326,1762865441237,-200.0,0.00039342,20]
[393628327,1762865441247,-788.0,0.00039345,2]
[393628328,1762865441257,-12798.7321392,0.00039351,4]
[393628329,1762865441269,-11223.0951968,0.0003936,4]
[393628330,1762865441280,-12798.7321392,0.0003936,4]
[393628331,1762865441290,-22446.1903936,0.0003937,4]
[393628332,1762865441300,-12798.7321392,0.0003937,4]
[393628333,1762865441310,-22446.1903936,0.0003938,4]
[393628334,1762865441319,-25597.4642784,0.0003938,4]
[393628335,1762865441329,-11223.0951968,0.00039389,4]
[393628336,1762865441339,-44892.3807872,0.0003939,4]
[393628337,1762865441349,-63993.660696,0.0003939,4]
[393628338,1762865441359,-2000.0,0.00039399,2]
[393628339,1762865441369,-167.809237,0.000394,60]
[393628340,1762865441378,-130615.40192372,0.000394,120]
[393628341,1762865441388,-161.665604,0.000394,60]
[393628342,1762865441397,-178.163465,0.000394,60]
[393628343,1762865441408,-176.747414,0.000394,60]
[393628344,1762865441417,-166.592435,0.000394,60]
[393628345,1762865441426,-478.44322026,0.000394,120]
[393628346,1762865441436,-1725.16456899,0.00039414,2]
[393628347,1762865441445,-200.0,0.00039452,20]
[393628348,1762865441455,-2000.0,0.000395,2]
[393628349,1762865441464,-2706.50403195,0.00039505,2]
[393628350,1762865441474,-2500.0,0.00039548,14]
[393628351,1762865441484,-12798.7321392,0.00039556,4]
[393628352,1762865441493,-2500.0,0.00039557,14]
[393628353,1762865441503,-200.0,0.00039562,20]
[393628354,1762865441512,-2500.0,0.00039566,14]
[393628355,1762865441524,-1725.16456899,0.00039568,2]
[393628356,1762865441533,-2500.0,0.00039575,14]
[393628357,1762865441543,-2500.0,0.00039584,14]
[393628358,1762865441552,-262.72460208,0.0003959,96]
[393628359,1762865441562,-2500.0,0.00039592,14]
[393628360,1762865441572,-5769.22854429,0.000396,90]
[393628361,1762865441582,-2500.0,0.00039601,14]
[393628362,1762865441592,-2500.0,0.0003961,14]
[393628363,1762865441602,-2500.0,0.00039619,14]
[393628364,1762865441611,-12798.7321392,0.0003962,4]
[393628365,1762865441621,-208.48584617,0.00039622,2]
[393628366,1762865441631,-2500.0,0.00039628,14]
[393628367,1762865441640,-4838.0,0.0003963,5]
[393628368,1762865441650,-2500.0,0.00039636,14]
[393628369,1762865441659,-151.0,0.00039642,14]
[393628370,1762865441668,-2500.0,0.00039645,14]
[393628371,1762865441678,-179.432064,0.0003965,60]
[393628372,1762865441687,-167.809237,0.0003965,60]
[393628373,1762865441698,-160.603281,0.0003965,60]
[393628374,1762865441708,-161.665604,0.0003965,60]
[393628375,1762865441718,-178.163465,0.0003965,60]
[393628376,1762865441730,-176.747414,0.0003965,60]
[393628377,1762865441741,-166.592435,0.0003965,60]
[393628378,1762865441750,-250.0,0.0003965,30]
[393628379,1762865441759,-250.0,0.0003965,30]
[393628380,1762865441770,-250.0,0.0003965,30]
[393628381,1762865441780,-250.0,0.0003965,30]
[393628382,1762865441789,-250.0,0.0003965,30]
[393628383,1762865441799,-151.0,0.0003965,30]
[393628384,1762865441809,-250.0,0.0003965,30]
[393628385,1762865441818,-151.0,0.0003965,30]
[393628386,1762865441828,-151.0,0.0003965,30]
[393628387,1762865441837,-250.0,0.0003965,30]
[393628388,1762865441846,-250.0,0.0003965,30]
[393628389,1762865441856,-151.0,0.0003965,30]
[393628390,1762865441865,-250.0,0.0003965,30]
[393628391,1762865441875,-250.0,0.0003965,30]
[393628392,1762865441884,-151.0,0.0003965,30]
[393628393,1762865441891,-250.0,0.0003965,30]
[393628394,1762865441898,-250.0,0.0003965,30]
[393628395,1762865441906,-250.0,0.0003965,30]
[393628396,1762865441912,-151.0,0.0003965,30]
[393628397,1762865441919,-250.0,0.0003965,30]
[393628398,1762865441927,-250.0,0.0003965,30]
[393628399,1762865441933,-151.0,0.0003965,30]
[393628400,1762865441941,-250.0,0.0003965,30]
[393628401,1762865441948,-250.0,0.0003965,30]
[393628402,1762865441955,-250.0,0.0003965,30]
[393628403,1762865441962,-151.0,0.0003965,30]
[393628404,1762865441971,-177.10850097,0.0003965,30]
[393628405,1762865441979,-250.0,0.0003965,30]
[393628406,1762865441988,-151.0,0.0003965,30]
[393628407,1762865441998,-151.0,0.0003965,30]
[393628408,1762865442008,-151.0,0.0003965,30]
[393628409,1762865442019,-151.0,0.0003965,30]
[393628410,1762865442029,-151.0,0.0003965,30]
[393628411,1762865442038,-151.0,0.0003965,30]
[393628412,1762865442048,-151.0,0.0003965,30]
[393628413,1762865442057,-151.0,0.0003965,30]
[393628414,1762865442067,-151.0,0.0003965,30]
[393628415,1762865442076,-194.4058916,0.0003965,30]
[393628416,1762865442087,-151.0,0.0003965,30]
[393628417,1762865442096,-151.0,0.0003965,30]
[393628418,1762865442106,-151.0,0.0003965,30]
[393628419,1762865442116,-151.0,0.0003965,30]
[393628420,1762865442126,-151.0,0.0003965,30]
[393628421,1762865442135,-151.0,0.0003965,30]
[393628422,1762865442145,-151.0,0.0003965,30]
[393628423,1762865442154,-151.0,0.0003965,30]
[393628424,1762865442163,-151.0,0.0003965,30]
[393628425,1762865442172,-151.0,0.0003965,30]
[393628426,1762865442182,-151.0,0.0003965,30]
[393628427,1762865442191,-151.0,0.0003965,30]
[393628428,1762865442200,-151.0,0.0003965,30]
[393628429,1762865442210,-151.0,0.0003965,30]
[393628430,1762865442219,-151.0,0.0003965,30]
[393628431,1762865442229,-151.0,0.0003965,30]
[393628432,1762865442238,-151.0,0.0003965,30]
[393628433,1762865442248,-151.0,0.0003965,30]
[393628434,1762865442258,-151.0,0.0003965,30]
[393628435,1762865442267,-151.0,0.0003965,30]
[393628436,1762865442277,-151.0,0.0003965,30]
[393628437,1762865442287,-151.0,0.0003965,30]
[393628438,1762865442296,-151.0,0.0003965,30]
[393628439,1762865442306,-12798.7321392,0.00039653,4]
[393628440,1762865442315,-306.76,0.00039654,2]
[393628441,1762865442324,-2500.0,0.00039654,14]
[393628442,1762865442333,-2500.0,0.00039663,14]
[393628443,1762865442343,-2500.0,0.00039672,14]
[393628444,1762865442353,-140786.053531,0.00039672,4]
[393628445,1762865442362,-2825.28477316,0.00039672,2]
[393628446,1762865442371,-2500.0,0.0003968,14]
[393628447,1762865442381,-1197.50307316,0.00039681,30]
[393628448,1762865442390,-420000.0,0.00039682,2]
[393628449,1762865442399,-191.42875082,0.00039686,7]
[393628450,1762865442408,-2500.0,0.00039689,14]
[393628451,1762865442418,-2500.0,0.00039698,14]
[393628452,1762865442427,-161.44,0.000397,60]
[393628453,1762865442436,-478.44322026,0.000397,30]
[393628454,1762865442446,-574.0,0.00039717,2]
[393628455,1762865442455,-3105.696,0.00039717,2]
[393628456,1762865442465,-775.776,0.00039717,2]
[393628457,1762865442475,-1518.418,0.00039717,2]
[393628458,1762865442484,-820.0,0.00039717,2]
[393628459,1762865442493,-906.0,0.00039717,2]
[393628460,1762865442502,-827.037,0.00039717,2]
[393628461,1762865442511,-1273.0,0.00039717,2]
[393628462,1762865442520,-6664.0,0.00039717,2]
[393628463,1762865442529,-2143.0,0.00039717,2]
[393628464,1762865442538,-6481.0,0.00039717,2]
[393628465,1762865442548,-500.0,0.00039726,5]
[393628466,1762865442558,-600.0,0.00039765,15]
[393628467,1762865442568,-600.0,0.00039765,15]
[393628468,1762865442578,-600.0,0.00039765,15]
[393628469,1762865442587,-600.0,0.00039765,15]
[393628470,1762865442596,-600.0,0.00039765,15]
[393628471,1762865442605,-600.0,0.00039765,15]
[393628472,1762865442616,-600.0,0.00039765,15]
[393628473,1762865442626,-600.0,0.00039765,15]
[393628474,1762865442636,-600.0,0.00039765,15]
[393628475,1762865442645,-600.0,0.00039765,15]
[393628476,1762865442655,-150.0,0.00039773,5]
[393628477,1762865442665,-528.9112255,0.00039776,2]
[393628478,1762865442675,-17437.65872643,0.00039782,2]
[393628479,1762865442685,-33287.216,0.00039782,2]
[393628480,1762865442700,-1000.0,0.00039782,2]
[393628481,1762865442710,-806.25,0.00039798,30]
[393628482,1762865442720,-2040.0913,0.00039807,120]
[393628483,1762865442729,-528.91122548,0.00039809,2]
[393628484,1762865442740,-2487.58762329,0.00039822,2]
[393628485,1762865442750,-528.91122548,0.00039841,2]
[393628486,1762865442759,-171.62032392,0.00039841,13]
[393628487,1762865442769,-419.95975372,0.00039841,2]
[393628488,1762865442779,-422.34158646,0.00039841,12]
[393628489,1762865442789,-335.4112503,0.00039841,8]
[393628490,1762865442799,-383.1491963,0.00039841,2]
[393628491,1762865442808,-837.13498736,0.00039841,2]
[393628492,1762865442818,-164.0,0.00039871,90]
[393628493,1762865442827,-500.0,0.00039872,7]
[393628494,1762865442837,-500.0,0.00039872,7]
[393628495,1762865442847,-150.0,0.00039872,7]
[393628497,1762865442856,-150.0,0.00039872,7]
[393628498,1762865442865,-152.22350438,0.00039872,7]
[393628500,1762865442874,-150.0,0.00039872,7]
[393628502,1762865442883,-150.0,0.00039872,7]
[393628504,1762865442893,-500.0,0.00039872,2]
[393628505,1762865442902,-500.0,0.00039872,7]
[393628507,1762865442911,-155.24816507,0.00039872,2]
[393628509,1762865442921,-500.0,0.00039872,7]
[393628511,1762865442931,-150.0,0.00039872,7]
[393628513,1762865442941,-500.0,0.00039872,7]
[393628514,1762865442950,-150.0,0.00039872,2]
[393628516,1762865442960,-150.0,0.00039872,7]
[393628518,1762865442969,-65661.5598162,0.00039876,2]
[393628520,1762865442978,-49246.1698622,0.00039876,2]
[393628522,1762865442987,-131381.54213172,0.00039876,2]
[393628533,1762865443108,-1856.434,0.00039876,2]
[393628534,1762865443119,-10500.0,0.00039876,2]
[393628536,1762865443149,-327.84001672,0.00039717,2]
[393628537,1762865443160,-233.09498328,0.00039717,2]
[393628538,1762865443170,-156812.12532988,0.00039876,2]
[393628539,1762865443179,-350.2801729,0.00039876,2]
[393628540,1762865443189,-1418.8537179,0.00039876,2]
[393628541,1762865443198,-100300.1272115,0.00039876,2]
[393628542,1762865443208,-7497.91249153,0.00039881,2]
[393628543,1762865443217,-2000.0,0.00039881,2]
[393628544,1762865443226,-2000.0,0.00039881,2]
[393628545,1762865443245,-960.811,0.00039881,2]
[393628546,1762865443254,-500.0,0.00039881,120]
[393628547,1762865443264,-500.0,0.00039881,120]
[393628548,1762865443274,-500.0,0.00039881,120]
[393628549,1762865443283,-500.0,0.00039881,120]
[393628550,1762865443292,-500.0,0.00039881,120]
[393628551,1762865443301,-415.14,0.00039881,120]
[393628552,1762865443311,-500.0,0.00039882,7]
[393628553,1762865443321,-500.0,0.00039882,7]
[393628554,1762865443330,-200.0,0.00039882,2]
[393628555,1762865443340,-200.0,0.00039882,2]
[393628556,1762865443349,-1692.2385,0.00039882,2]
[393628557,1762865443358,-156.441113,0.00039896,2]
[393628558,1762865443367,-156.441113,0.00039896,2]
[393628559,1762865443377,-157.114358,0.00039896,2]
[393628560,1762865443386,-153.257485,0.00039896,2]
[393628561,1762865443397,-160.810076,0.00039896,2]
[393628562,1762865443407,-156.460359,0.00039896,2]
[393628563,1762865443417,-153.257485,0.00039896,2]
[393628564,1762865443426,-162.054814,0.00039896,2]
[393628565,1762865443436,-156.024365,0.00039896,2]
[393628566,1762865443445,-179.432064,0.00039896,2]
[393628567,1762865443455,-222.521977,0.00039896,2]
[393628568,1762865443465,-167.809237,0.00039896,2]
[393628569,1762865443475,-160.603281,0.00039896,2]
[393628570,1762865443485,-166.908883,0.00039896,2]
[393628571,1762865443494,-166.908883,0.00039896,2]
[393628572,1762865443504,-176.747414,0.00039896,2]
[393628573,1762865443514,-178.163465,0.00039896,2]
[393628575,1762865443524,-161.665604,0.00039896,2]
[393628576,1762865443534,-166.592435,0.00039896,2]
[393628577,1762865443544,-788.0,0.00039898,2]
[393628578,1762865443554,-12036.4078981,0.000399,30]
[393628579,1762865443563,-250.0,0.000399,14]
[393628580,1762865443572,-250.0,0.000399,14]
[393628581,1762865443582,-250.0,0.000399,14]
[393628582,1762865443591,-250.0,0.000399,14]
[393628583,1762865443601,-250.0,0.000399,14]
[393628584,1762865443610,-250.0,0.000399,14]
[393628585,1762865443619,-250.0,0.000399,14]
[393628586,1762865443628,-250.0,0.000399,14]
[393628587,1762865443638,-250.0,0.000399,14]
[393628588,1762865443648,-250.0,0.000399,14]
[393628589,1762865443657,-250.0,0.000399,14]
[393628591,1762865443666,-250.0,0.000399,14]
[393628592,1762865443676,-250.0,0.000399,14]
[393628593,1762865443686,-250.0,0.000399,14]
[393628594,1762865443699,-250.0,0.000399,14]
[393628595,1762865443709,-250.0,0.000399,14]
[393628596,1762865443718,-250.0,0.000399,14]
[393628597,1762865443728,-250.0,0.000399,14]
[393628598,1762865443739,-250.0,0.000399,14]
[393628599,1762865443749,-250.0,0.000399,14]
[393628600,1762865443759,-250.0,0.000399,14]
[393628601,1762865443769,-520.6,0.000399,14]
[393628602,1762865443782,-157.114356,0.000399,60]
[393628603,1762865443792,-156.441113,0.000399,60]
[393628604,1762865443802,-156.441113,0.000399,60]
[393628605,1762865443812,-153.257485,0.000399,60]
[393628606,1762865443822,-160.810076,0.000399,60]
[393628607,1762865443832,-156.460359,0.000399,60]
[393628608,1762865443842,-153.257485,0.000399,60]
[393628609,1762865443851,-156.024365,0.000399,60]
[393628610,1762865443861,-2462.39,0.000399,14]
[393628611,1762865443870,-179.432064,0.000399,60]
[393628612,1762865443879,-222.521977,0.000399,60]
[393628613,1762865443888,-167.809237,0.000399,60]
[393628614,1762865443897,-1048.89,0.000399,30]
[393628615,1762865443907,-2103.84,0.000399,30]
[393628616,1762865443916,-160.603281,0.000399,60]
[393628617,1762865443926,-166.908883,0.000399,60]
[393628618,1762865443936,-166.908883,0.000399,60]
[393628619,1762865443946,-176.747414,0.000399,60]
[393628620,1762865443955,-161.665604,0.000399,60]
[393628621,1762865443964,-178.163465,0.000399,60]
[393628622,1762865443973,-166.592435,0.000399,60]
[393628623,1762865443983,-1000.0,0.000399,7]
[393628624,1762865443993,-151.0,0.00039938,14]
[393628625,1762865444002,-150.0,0.0003994,20]
[393628626,1762865444011,-5155.78901987,0.00039941,29]
[393628627,1762865444021,-151.0,0.00039941,120]
[393628628,1762865444031,-151.0,0.00039941,120]
[393628629,1762865444040,-151.0,0.00039941,120]
[393628630,1762865444049,-151.0,0.00039941,120]
[393628631,1762865444059,-151.0,0.00039941,21]
[393628632,1762865444068,-151.0,0.00039941,21]
[393628633,1762865444077,-151.0,0.00039941,21]
[393628634,1762865444087,-164.790225,0.00039941,21]
[393628635,1762865444096,-153.008677,0.00039941,120]
[393628636,1762865444105,-151.0,0.00039941,120]
[393628637,1762865444114,-151.0,0.00039941,120]
[393628638,1762865444123,-151.0,0.00039941,120]
[393628639,1762865444132,-151.0,0.00039941,120]
[393628640,1762865444142,-151.0,0.00039941,120]
[393628641,1762865444151,-151.0,0.00039941,120]
[393628642,1762865444160,-151.0,0.00039941,120]
[393628643,1762865444169,-165.664254,0.00039941,120]
[393628644,1762865444178,-151.0,0.00039941,120]
[393628645,1762865444187,-151.0,0.00039941,120]
[393628646,1762865444196,-151.0,0.00039941,120]
[393628647,1762865444205,-151.0,0.00039941,120]
[393628649,1762865444215,-178.925692,0.00039941,120]
[393628650,1762865444224,-202.658246,0.00039941,120]
[393628651,1762865444233,-151.0,0.00039941,120]
[393628652,1762865444242,-151.0,0.00039941,120]
[393628653,1762865444251,-151.0,0.00039941,120]
[393628654,1762865444260,-151.0,0.00039941,120]
[393628655,1762865444269,-151.0,0.00039941,120]
[393628656,1762865444278,-151.0,0.00039941,120]
[393628657,1762865444287,-173.500848,0.00039941,120]
[393628658,1762865444297,-151.0,0.00039941,90]
[393628659,1762865444307,-151.0,0.00039941,90]
[393628660,1762865444316,-151.0,0.00039941,120]
[393628661,1762865444326,-151.0,0.00039941,120]
[393628662,1762865444335,-151.0,0.00039941,120]
[393628663,1762865444344,-151.0,0.00039941,120]
[393628664,1762865444354,-151.0,0.00039941,120]
[393628665,1762865444363,-151.0,0.00039941,120]
[393628666,1762865444373,-195.220456,0.00039941,120]
[393628667,1762865444383,-151.0,0.00039941,120]
[393628668,1762865444393,-151.0,0.00039941,120]
[393628669,1762865444403,-151.0,0.00039941,120]
[393628670,1762865444413,-151.0,0.00039941,120]
[393628671,1762865444423,-151.0,0.00039941,120]
[393628672,1762865444432,-151.0,0.00039941,120]
[393628673,1762865444442,-151.0,0.00039941,120]
[393628674,1762865444452,-151.0,0.00039941,120]
[393628675,1762865444462,-151.0,0.00039941,120]
[393628676,1762865444475,-296.039985,0.00039941,120]
[393628677,1762865444485,-151.0,0.00039941,120]
[393628678,1762865444494,-151.0,0.00039941,120]
[393628679,1762865444503,-151.0,0.00039941,120]
[393628680,1762865444512,-224.035383,0.00039941,120]
[393628681,1762865444523,-208.928791,0.00039941,2]
[393628682,1762865444532,-151.0,0.00039941,120]
[393628683,1762865444542,-151.0,0.00039941,120]
[393628684,1762865444551,-151.0,0.00039941,120]
[393628685,1762865444561,-151.0,0.00039941,120]
[393628686,1762865444570,-151.0,0.00039941,120]
[393628687,1762865444757,-151.0,0.00039941,120]
[393628688,1762865444767,-151.0,0.00039941,120]
[393628689,1762865444779,-151.0,0.00039941,120]
[393628690,1762865444790,-151.0,0.00039941,120]
[393628691,1762865444799,-151.0,0.00039941,120]
[393628692,1762865444809,-229.219419,0.00039941,120]
[393628693,1762865444819,-151.0,0.00039941,120]
[393628694,1762865444830,-151.0,0.00039941,120]
[393628695,1762865444839,-151.0,0.00039941,120]
[393628696,1762865444849,-151.0,0.00039941,120]
[393628697,1762865444866,-268.252098,0.00039941,120]
[393628698,1762865444880,-151.0,0.00039941,120]
[393628699,1762865444890,-233.764415,0.00039941,120]
[393628700,1762865444900,-151.0,0.00039941,120]
[393628701,1762865444911,-151.0,0.00039941,120]
[393628702,1762865444921,-151.0,0.00039941,120]
[393628703,1762865444930,-151.0,0.00039941,120]
[393628704,1762865444940,-151.0,0.00039941,120]
[393628705,1762865444950,-151.0,0.00039941,120]
[393628706,1762865444960,-151.0,0.00039941,120]
[393628707,1762865444970,-151.0,0.00039941,120]
[393628708,1762865444979,-151.0,0.00039941,120]
[393628709,1762865444991,-151.0,0.00039941,120]
[393628710,1762865445000,-151.0,0.00039941,120]
[393628711,1762865445010,-197.607369,0.00039941,120]
[393628712,1762865445020,-151.0,0.00039941,120]
[393628713,1762865445030,-151.0,0.00039941,120]
[393628714,1762865445039,-279.284647,0.00039941,120]
[393628715,1762865445049,-151.0,0.00039941,120]
[393628716,1762865445059,-151.0,0.00039941,120]
[393628717,1762865445068,-151.0,0.00039941,120]
[393628718,1762865445078,-221.868087,0.00039941,95]
[393628719,1762865445087,-151.0,0.00039941,120]
[393628720,1762865445096,-151.0,0.00039941,120]
[393628721,1762865445106,-151.0,0.00039941,120]
[393628722,1762865445115,-151.0,0.00039941,120]
[393628723,1762865445124,-151.0,0.00039941,120]
[393628724,1762865445133,-188.906772,0.00039941,120]
[393628725,1762865445143,-151.0,0.00039941,120]
[393628726,1762865445152,-151.0,0.00039941,120]
[393628727,1762865445161,-151.0,0.00039941,120]
[393628728,1762865445171,-151.0,0.00039941,120]
[393628729,1762865445181,-158.47328,0.00039941,120]
[393628730,1762865445190,-151.0,0.00039941,120]
[393628731,1762865445199,-151.0,0.00039941,120]
[393628732,1762865445208,-151.0,0.00039941,120]
[393628733,1762865445218,-248.936476,0.00039941,120]
[393628734,1762865445227,-151.0,0.00039941,120]
[393628735,1762865445236,-5267133.56411389,0.00039941,7]
[393628736,1762865445249,-803.74330137,0.00039941,7]
[393628737,1762865445261,-11705.78574414,0.00039941,7]
[393628738,1762865445273,-575.34554962,0.00039941,7]
[393628739,1762865445284,-3239.64536153,0.00039941,7]
[393628740,1762865445295,-6577.8,0.00039941,7]
[393628741,1762865445306,-850.48796728,0.00039941,7]
[393628742,1762865445318,-1932.13583338,0.00039941,7]
[393628743,1762865445329,-1950.0,0.00039941,7]
[393628744,1762865445340,-745.01559428,0.00039941,7]
[393628745,1762865445351,-5134.749,0.00039941,7]
[393628746,1762865445362,-23011.09850284,0.00039941,7]
[393628747,1762865445404,-4128.19429225,0.00039941,7]
[393628748,1762865445415,-6657.07241363,0.00039941,7]
[393628749,1762865445444,-6147.60968598,0.00039941,7]
[393628750,1762865445455,-715.45096966,0.00039941,7]
[393628751,1762865445466,-257.77172109,0.00039941,7]
[393628753,1762865446559,-246.89823067,0.00039898,2]
[393628754,1762865446569,-31225.89930515,0.00039941,7]
[393628755,1762865446581,-56572.40646407,0.00039941,7]
[393628756,1762865446592,-10275.0,0.00039941,7]
[393628757,1762865446603,-1322.58,0.00039941,7]
[393628758,1762865446614,-4930.54698951,0.00039941,7]
[393628759,1762865446624,-15536.91274661,0.00039941,7]
[393628760,1762865446635,-266.37130133,0.00039941,7]
[393628949,1762866035908,-220.5134589,0.00016973,2]
[393628964,1762866632261,-193.25,0.00016712,2]
[393628965,1762866632271,-224.84404007,0.00016879,2]
[393628966,1762866632280,-250.0,0.0001689,2]
[393628967,1762866632289,-375.64157914,0.000169,2]
[393628968,1762866632298,-250.0,0.00018567,2]
[393628969,1762866632308,-166.71968697,0.00018567,2]
[393628970,1762866632319,-83.28031303,0.00018567,2]
[393628971,1762866632329,-176.80771075,0.00020862,2]
[393628972,1762866632339,-457.90358108,0.00020962,2]
[393628973,1762866632376,-20.53963918,0.00020962,2]
[393628974,1762866632386,-197.52622172,0.00021603,2]
[393628975,1762866632395,-647.41357058,0.00022047,2]
[393628976,1762866632405,-932.0,0.00030137,120]
[393628977,1762866632414,-1695.82481926,0.00030588,2]
[393628978,1762866632424,-381.0,0.00030713,2]
[393628979,1762866632433,-1600.0,0.00030713,2]
[393628980,1762866632442,-400.0,0.00030713,2]